bitfinex/quotes_BTCUSD_20230118
["timestamp","ask_amount","ask_price","bid_price","bid_amount"]
[1674022361995,0.00188194,21291.0,21288.0,0.26951936]
[1674022362503,0.00188194,21291.0,21288.0,0.27551936]
[1674022363004,0.00188194,21291.0,21288.0,0.26951936]
[1674022363739,0.469665,21292.0,21288.0,0.26951936]
[1674022363995,0.469665,21292.0,21288.0,0.30439123]
[1674022364227,0.469665,21292.0,21288.0,0.45639123]
[1674022364228,0.022,21291.0,21288.0,0.45639123]
[1674022364467,0.469665,21292.0,21288.0,0.26951936]
[1674022364726,0.491665,21292.0,21288.0,0.27551936]
[1674022364967,0.00188194,21291.0,21288.0,0.26951936]
[1674022365201,0.02388194,21291.0,21288.0,0.27151936]
[1674022365445,0.00188194,21291.0,21288.0,0.26951936]
[1674022365675,0.00188194,21291.0,21288.0,0.27551936]
[1674022365933,0.00188194,21291.0,21288.0,0.26951936]
[1674022366214,0.02388194,21291.0,21288.0,0.27151936]
[1674022367689,0.50643174,21291.0,21288.0,0.002]
[1674022367938,0.97611674,21291.0,21288.0,0.002]
[1674022368195,2.16632912,21291.0,21288.0,0.002]
[1674022368464,0.1098,21290.0,21288.0,0.002]
[1674022368721,0.469726,21289.0,21288.0,0.002]
[1674022370424,1.41783534,21289.0,21288.0,0.002]
[1674022371180,1.41983534,21289.0,21288.0,0.073]
[1674022371428,2.3667778,21289.0,21288.0,0.073]
[1674022371682,2.5873778,21289.0,21288.0,0.073]
[1674022373900,3.02101722,21289.0,21288.0,0.073]
[1674022374401,2.5873778,21289.0,21288.0,0.073]
[1674022377983,2.4412778,21289.0,21288.0,0.073]
[1674022378457,2.4412778,21289.0,21288.0,0.07293572]
[1674022381146,2.9195038,21289.0,21288.0,0.07293572]
[1674022383661,2.5976308,21289.0,21288.0,0.07293572]
[1674022383940,2.9195038,21289.0,21288.0,0.07293572]
[1674022385124,3.27954382,21289.0,21288.0,0.07293572]
[1674022385656,2.95767082,21289.0,21288.0,0.07293572]
[1674022385908,3.27954382,21289.0,21288.0,0.07293572]
[1674022388667,2.9195038,21289.0,21288.0,0.07293572]
[1674022388922,2.5976308,21289.0,21288.0,0.07293572]
[1674022389166,2.9195038,21289.0,21288.0,0.07293572]
[1674022397157,2.9946038,21289.0,21288.0,0.07293572]
[1674022399159,4.04668685,21289.0,21288.0,0.07293572]
[1674022399901,4.50471456,21289.0,21288.0,0.07293572]
[1674022400139,3.45263151,21289.0,21288.0,0.07293572]
[1674022400391,2.9946038,21289.0,21288.0,0.07287424]
[1674022400640,2.9201038,21289.0,21288.0,0.07287424]
[1674022401386,2.59503434,21289.0,21288.0,0.07287424]
[1674022401706,2.27316134,21289.0,21288.0,0.07287424]
[1674022401890,2.9201038,21289.0,21288.0,0.09868669]
[1674022402152,2.5982308,21289.0,21288.0,0.09868669]
[1674022402396,2.9201038,21289.0,21288.0,0.09868669]
[1674022402887,3.85997209,21289.0,21288.0,0.09868669]
[1674022403371,3.97216352,21289.0,21288.0,0.09868669]
[1674022403587,4.28933627,21289.0,21288.0,0.09868669]
[1674022404112,4.17714484,21289.0,21288.0,0.09868669]
[1674022405584,4.28933627,21289.0,21288.0,0.09868669]
[1674022407077,4.45761334,21289.0,21288.0,0.09868669]
[1674022407769,4.5698905,21289.0,21288.0,0.09868669]
[1674022408033,4.45775861,21289.0,21288.0,0.09868669]
[1674022408287,3.8155164,21289.0,21288.0,0.09868669]
[1674022409528,4.02824916,21289.0,21288.0,0.09868669]
[1674022409768,4.08444068,21289.0,21288.0,0.09868669]
[1674022410023,4.36545755,21289.0,21288.0,0.09868669]
[1674022411230,4.08444068,21289.0,21288.0,0.09868669]
[1674022412485,4.55854285,21289.0,21288.0,0.09868669]
[1674022412742,4.08444068,21289.0,21288.0,0.09868669]
[1674022415403,4.36545755,21289.0,21288.0,0.09868669]
[1674022415896,4.08444068,21289.0,21288.0,0.09868669]
[1674022418843,4.25305543,21289.0,21288.0,0.09868669]
[1674022419108,3.92798562,21289.0,21288.0,0.09868669]
[1674022419329,3.02544344,21289.0,21288.0,0.09868669]
[1674022419585,3.32544344,21289.0,21288.0,0.09868669]
[1674022420102,3.38164403,21289.0,21288.0,0.09868669]
[1674022420361,3.49406351,21289.0,21288.0,0.09868669]
[1674022420592,3.92798562,21289.0,21288.0,0.09868669]
[1674022420824,4.25305508,21289.0,21288.0,0.09868669]
[1674022421295,3.93118208,21289.0,21288.0,0.09868669]
[1674022421524,3.93118208,21289.0,21288.0,0.09859449]
[1674022421777,4.08444068,21289.0,21288.0,0.09859449]
[1674022422056,4.02860084,21289.0,21288.0,0.09859449]
[1674022422801,3.70672784,21289.0,21288.0,0.09859449]
[1674022423035,4.36545755,21289.0,21288.0,0.09859449]
[1674022423272,4.79667189,21289.0,21288.0,0.09859449]
[1674022423509,4.36545755,21289.0,21288.0,0.09859449]
[1674022423744,4.14098896,21289.0,21288.0,0.09859449]
[1674022424730,4.06588896,21289.0,21288.0,0.09859449]
[1674022424977,4.17628896,21289.0,21288.0,0.09859449]
[1674022426172,4.07609901,21289.0,21288.0,0.09859449]
[1674022426677,3.85133375,21289.0,21288.0,0.09859449]
[1674022426923,4.51086847,21289.0,21288.0,0.09859449]
[1674022427195,4.00497209,21289.0,21288.0,0.09859449]
[1674022427741,4.34238589,21289.0,21288.0,0.09859449]
[1674022428224,4.00497209,21289.0,21288.0,0.09859449]
[1674022428464,4.47907426,21289.0,21288.0,0.09859449]
[1674022428723,4.47707426,21289.0,21288.0,0.02581245]
[1674022429491,5.17707427,21289.0,21288.0,0.02581245]
[1674022433615,5.45803509,21289.0,21288.0,0.02581245]
[1674022434092,3.2937941,21289.0,21288.0,0.02581245]
[1674022434345,4.3810991,21289.0,21288.0,0.02581245]
[1674022434605,4.70287516,21289.0,21288.0,0.02581245]
[1674022434858,4.9838092,21289.0,21288.0,0.02581245]
[1674022435104,4.70287516,21289.0,21288.0,0.02581245]
[1674022436115,4.98381053,21289.0,21288.0,0.02581245]
[1674022436638,4.65874107,21289.0,21288.0,0.02581245]
[1674022436908,4.77310359,21289.0,21288.0,0.02581245]
[1674022437226,4.46644708,21289.0,21288.0,0.02581245]
[1674022437417,4.65030679,21289.0,21288.0,0.02581245]
[1674022438205,4.97217979,21289.0,21288.0,0.02581245]
[1674022439208,5.15614091,21289.0,21288.0,0.02581245]
[1674022439966,5.66196151,21289.0,21288.0,0.02581245]
[1674022440774,5.94297144,21289.0,21288.0,0.02581245]
[1674022441043,7.06401607,21289.0,21288.0,0.02581245]
[1674022441278,6.5899139,21289.0,21288.0,0.02581245]
[1674022441530,6.15244465,21289.0,21288.0,0.02581245]
[1674022441796,6.05538994,21289.0,21288.0,0.02581245]
[1674022442079,6.37726294,21289.0,21288.0,0.02581245]
[1674022442572,5.83328059,21289.0,21288.0,0.02581245]
[1674022442823,6.00190045,21289.0,21288.0,0.02581245]
[1674022443924,6.22672191,21289.0,21288.0,0.02581245]
[1674022444191,6.22671889,21289.0,21288.0,0.02581245]
[1674022444959,6.21821889,21289.0,21288.0,0.02581245]
[1674022445467,6.33063416,21289.0,21288.0,0.02581245]
[1674022445990,6.65250716,21289.0,21288.0,0.02581245]
[1674022446531,6.70870495,21289.0,21288.0,0.02581245]
[1674022447034,6.98972246,21289.0,21288.0,0.02581245]
[1674022447338,7.31479192,21289.0,21288.0,0.02581245]
[1674022447823,6.70870495,21289.0,21288.0,0.02581245]
[1674022448082,7.27074806,21289.0,21288.0,0.02581245]
[1674022448363,7.27074209,21289.0,21288.0,0.02581245]
[1674022448904,7.71431155,21289.0,21288.0,0.02581245]
[1674022449156,7.93913005,21289.0,21288.0,0.02581245]
[1674022449668,7.71431155,21289.0,21288.0,0.02581245]
[1674022450440,7.43305353,21289.0,21288.0,0.02581245]
[1674022450702,7.71406958,21289.0,21288.0,0.02581245]
[1674022451204,7.93890019,21289.0,21288.0,0.02581245]
[1674022451716,7.71406958,21289.0,21288.0,0.02581245]
[1674022451959,7.43305353,21289.0,21288.0,0.02581245]
[1674022452768,7.71409369,21289.0,21288.0,0.02581245]
[1674022453488,7.43305353,21289.0,21288.0,0.02581245]
[1674022453757,7.71409662,21289.0,21288.0,0.02581245]
[1674022454001,7.43305353,21289.0,21288.0,0.02581245]
[1674022455322,8.13305354,21289.0,21288.0,0.02581245]
[1674022458194,8.61025523,21289.0,21288.0,0.02581245]
[1674022458713,8.41418738,21289.0,21288.0,0.02581245]
[1674022458990,7.67064736,21289.0,21288.0,0.02581245]
[1674022459244,7.18007871,21289.0,21288.0,0.02581245]
[1674022459501,7.34877436,21289.0,21288.0,0.02581245]
[1674022459765,7.18007871,21289.0,21288.0,0.02581245]
[1674022460025,7.34877436,21289.0,21288.0,0.02581245]
[1674022460299,6.76121727,21289.0,21288.0,0.02581245]
[1674022460572,7.50722492,21289.0,21288.0,0.02581245]
[1674022460811,7.82909792,21289.0,21288.0,0.02581245]
[1674022461565,8.41310009,21289.0,21288.0,0.02581245]
[1674022461836,8.66539123,21289.0,21288.0,0.02581245]
[1674022462622,8.30058906,21289.0,21288.0,0.02581245]
[1674022462903,8.5255478,21289.0,21288.0,0.02581245]
[1674022463252,8.30058906,21289.0,21288.0,0.02581245]
[1674022463399,9.11564688,21289.0,21288.0,0.02581245]
[1674022463649,8.89068907,21289.0,21288.0,0.02581245]
[1674022464178,8.41348738,21289.0,21288.0,0.02581245]
[1674022464698,8.52605661,21289.0,21288.0,0.02581245]
[1674022464955,7.71348737,21289.0,21288.0,0.02581245]
[1674022465713,7.90955522,21289.0,21288.0,0.02581245]
[1674022465970,8.19076332,21289.0,21288.0,0.02581245]
[1674022466486,8.89076333,21289.0,21288.0,0.02581245]
[1674022466752,8.60955523,21289.0,21288.0,0.02581245]
[1674022468076,8.68163402,21289.0,21288.0,0.02581245]
[1674022468355,8.60955523,21289.0,21288.0,0.02581245]
[1674022468564,8.89079418,21289.0,21288.0,0.02581245]
[1674022468838,8.28448577,21289.0,21288.0,0.02581245]
[1674022469085,8.79075067,21289.0,21288.0,0.02581245]
[1674022469523,8.1908135,21289.0,21288.0,0.02581245]
[1674022470499,7.86574404,21289.0,21288.0,0.02581245]
[1674022470741,7.80948777,21289.0,21288.0,0.02581245]
[1674022470961,7.86574404,21289.0,21288.0,0.02581245]
[1674022471213,8.1908135,21289.0,21288.0,0.02581245]
[1674022471467,7.06984858,21289.0,21288.0,0.02581245]
[1674022471715,6.95735821,21289.0,21288.0,0.02581245]
[1674022471972,6.54485627,21289.0,21288.0,0.02581245]
[1674022472229,6.65733646,21289.0,21288.0,0.02581245]
[1674022472483,6.37611107,21289.0,21288.0,0.02581245]
[1674022472746,6.48009126,21289.0,21288.0,0.02581245]
[1674022473807,4.95801678,21289.0,21288.0,0.02581245]
[1674022474059,5.89783468,21289.0,21288.0,0.02581245]
[1674022474308,5.89783468,21289.0,21288.0,0.02572297]
[1674022474564,4.95801678,21289.0,21288.0,0.02572297]
[1674022475884,6.01029309,21289.0,21288.0,0.02572297]
[1674022476086,6.01029309,21289.0,21288.0,0.13612297]
[1674022477121,5.8978129,21289.0,21288.0,0.13612297]
[1674022480355,5.89783114,21289.0,21288.0,0.13612297]
[1674022480855,4.95801678,21289.0,21288.0,0.13612297]
[1674022481126,5.89784193,21289.0,21288.0,0.13612297]
[1674022481385,6.31032212,21289.0,21288.0,0.13612297]
[1674022481657,6.31032212,21289.0,21288.0,0.02572297]
[1674022481918,6.19785085,21289.0,21288.0,0.02572297]
[1674022482675,6.47907624,21289.0,21288.0,0.02572297]
[1674022487783,6.36659605,21289.0,21288.0,0.02572297]
[1674022488034,6.47900102,21289.0,21288.0,0.02572297]
[1674022489324,6.36659605,21289.0,21288.0,0.02572297]
[1674022489847,6.47900221,21289.0,21288.0,0.02572297]
[1674022490629,6.80087521,21289.0,21288.0,0.02572297]
[1674022490890,6.63213001,21289.0,21288.0,0.02572297]
[1674022491694,6.31025701,21289.0,21288.0,0.02572297]
[1674022492714,6.17900221,21289.0,21288.0,0.02572297]
[1674022492979,4.95801678,21289.0,21288.0,0.02572297]
[1674022494307,6.19785797,21289.0,21288.0,0.02572297]
[1674022494598,4.95801678,21289.0,21288.0,0.02572297]
[1674022494870,4.95801678,21289.0,21288.0,0.0256561]
[1674022494871,6.31024292,21289.0,21288.0,0.0256561]
[1674022495362,6.47898812,21289.0,21288.0,0.0256561]
[1674022495363,6.47901338,21289.0,21288.0,0.0256561]
[1674022495618,6.41996818,21289.0,21288.0,0.0256561]
[1674022495874,7.06691064,21289.0,21288.0,0.0256561]
[1674022496150,7.23565584,21289.0,21288.0,0.0256561]
[1674022497014,7.70975801,21289.0,21288.0,0.0256561]
[1674022497269,7.60582659,21289.0,21288.0,0.0256561]
[1674022497524,7.35671673,21289.0,21288.0,0.0256561]
[1674022498028,7.18797153,21289.0,21288.0,0.0256561]
[1674022498277,7.35665215,21289.0,21288.0,0.0256561]
[1674022499323,3.92871304,21289.0,21288.0,0.0256561]
[1674022500377,3.70372073,21289.0,21288.0,0.0256561]
[1674022500631,3.81604142,21289.0,21288.0,0.0256561]
[1674022500900,3.05665716,21289.0,21288.0,0.0256561]
[1674022501150,2.76977562,21289.0,21288.0,0.0256561]
[1674022501424,3.05089896,21289.0,21288.0,0.0256561]
[1674022501902,2.99231742,21289.0,21288.0,0.0256561]
[1674022502724,3.81041816,21289.0,21288.0,0.0256561]
[1674022502995,3.20409042,21289.0,21288.0,0.0256561]
[1674022503514,2.88221742,21289.0,21288.0,0.0256561]
[1674022504051,3.1634757,21289.0,21288.0,0.0256561]
[1674022504848,3.81891816,21289.0,21288.0,0.0256561]
[1674022505100,3.4938487,21289.0,21288.0,0.0256561]
[1674022505367,3.15639182,21289.0,21288.0,0.0256561]
[1674022505637,3.38128925,21289.0,21288.0,0.0256561]
[1674022505857,3.96853161,21289.0,21288.0,0.0256561]
[1674022506336,3.79981252,21289.0,21288.0,0.0256561]
[1674022506576,3.85617337,21289.0,21288.0,0.0256561]
[1674022507565,4.08108275,21289.0,21288.0,0.0256561]
[1674022507788,3.85617337,21289.0,21288.0,0.0256561]
[1674022508589,3.53110391,21289.0,21288.0,0.0256561]
[1674022512586,3.64150391,21289.0,21288.0,0.0256561]
[1674022513101,3.64150391,21289.0,21282.0,1.07897564]
[1674022513102,0.15,21288.0,21282.0,1.07897564]
[1674022513357,2.65234825,21287.0,21283.0,0.1104]
[1674022513617,1.71252827,21287.0,21283.0,0.1104]
[1674022513870,1.71252827,21287.0,21283.0,0.13362208]
[1674022515086,1.52180232,21287.0,21283.0,0.13362208]
[1674022515338,0.39681925,21286.0,21283.0,0.13362208]
[1674022515618,0.939628,21285.0,21283.0,0.13362208]
[1674022516878,0.00188194,21284.0,21283.0,0.13362208]
[1674022517123,0.47171794,21284.0,21283.0,0.13862208]
[1674022517634,0.469836,21284.0,21283.0,0.13862208]
[1674022517916,0.497814,21285.0,21283.0,0.13862208]
[1674022518178,0.469814,21285.0,21283.0,0.13362208]
[1674022518457,0.47169594,21285.0,21283.0,0.13362208]
[1674022520114,0.49969594,21285.0,21283.0,0.13862208]
[1674022520677,0.49969594,21285.0,21281.0,0.12116742]
[1674022520920,0.69042189,21285.0,21283.0,0.1097]
[1674022521230,0.49969594,21285.0,21283.0,0.1097]
[1674022521488,0.47169594,21285.0,21283.0,0.1097]
[1674022521746,0.47369594,21285.0,21283.0,0.1097]
[1674022521990,0.47169594,21285.0,21283.0,0.1097]
[1674022522237,0.50369594,21285.0,21283.0,0.1147]
[1674022522492,0.50369594,21285.0,21284.0,0.1095]
[1674022524225,0.47169594,21285.0,21284.0,0.1095]
[1674022524751,0.47169594,21285.0,21284.0,0.1145]
[1674022524752,0.50369594,21285.0,21284.0,0.1145]
[1674022525741,0.501814,21285.0,21284.0,0.1145]
[1674022530051,0.50369594,21285.0,21284.0,0.1145]
[1674022532129,0.501814,21285.0,21284.0,0.1145]
[1674022532391,0.50369594,21285.0,21284.0,0.1145]
[1674022532663,0.50369594,21285.0,21284.0,0.2249]
[1674022532664,0.501814,21285.0,21284.0,0.2249]
[1674022533397,0.50369594,21285.0,21284.0,0.2249]
[1674022534403,0.501814,21285.0,21284.0,0.2249]
[1674022534691,0.501814,21285.0,21284.0,0.005]
[1674022536968,0.032,21285.0,21284.0,0.005]
[1674022537486,0.032,21285.0,21284.0,0.2257]
[1674022537736,0.032,21285.0,21284.0,0.61887913]
[1674022537986,0.032,21285.0,21284.0,0.94904329]
[1674022538239,0.032,21285.0,21284.0,0.33836073]
[1674022538520,0.032,21285.0,21284.0,0.11766073]
[1674022538723,0.032,21285.0,21284.0,0.22532455]
[1674022539171,0.032,21285.0,21284.0,0.11266073]
[1674022540730,0.087023,21285.0,21284.0,0.11266073]
[1674022542681,0.087023,21285.0,21284.0,0.22306073]
[1674022544435,0.08890494,21285.0,21284.0,0.22306073]
[1674022544658,0.087023,21285.0,21284.0,0.22306073]
[1674022547492,0.08890494,21285.0,21284.0,0.22306073]
[1674022547762,0.087023,21285.0,21284.0,0.22306073]
[1674022548752,0.082023,21285.0,21284.0,0.22306073]
[1674022550597,0.08390494,21285.0,21284.0,0.11266073]
[1674022551858,1.02353294,21285.0,21284.0,0.11266073]
[1674022558195,1.32353294,21285.0,21284.0,0.11266073]
[1674022558447,1.02353294,21285.0,21284.0,0.11266073]
[1674022558971,1.32353294,21285.0,21284.0,0.11266073]
[1674022560798,1.021651,21285.0,21284.0,0.11266073]
[1674022562639,1.261651,21285.0,21284.0,0.11266073]
[1674022564694,1.26353294,21285.0,21284.0,0.11266073]
[1674022566517,1.234651,21285.0,21284.0,0.11266073]
[1674022566751,1.23653294,21285.0,21284.0,0.11266073]
[1674022567524,1.36053294,21285.0,21284.0,0.11266073]
[1674022567793,0.888837,21285.0,21284.0,0.11266073]
[1674022568055,0.419023,21285.0,21284.0,0.11266073]
[1674022569144,0.42090494,21285.0,21284.0,0.11266073]
[1674022571021,0.419023,21285.0,21284.0,0.11266073]
[1674022575665,0.42090494,21285.0,21284.0,0.11266073]
[1674022575933,0.419023,21285.0,21284.0,0.11266073]
[1674022576730,0.42090494,21285.0,21284.0,0.11266073]
[1674022581519,0.89071894,21285.0,21284.0,0.11266073]
[1674022582023,0.888837,21285.0,21284.0,0.11266073]
[1674022582278,0.414023,21285.0,21284.0,0.11266073]
[1674022583581,0.883837,21285.0,21284.0,0.11266073]
[1674022585655,0.414023,21285.0,21284.0,0.11266073]
[1674022587983,0.883837,21285.0,21284.0,0.11266073]
[1674022590143,0.414023,21285.0,21284.0,0.11266073]
[1674022592445,0.883837,21285.0,21284.0,0.11266073]
[1674022593983,0.88571894,21285.0,21284.0,0.11266073]
[1674022597479,1.35553294,21285.0,21284.0,0.11266073]
[1674022598530,0.883837,21285.0,21284.0,0.11266073]
[1674022602097,0.88571894,21285.0,21284.0,0.11266073]
[1674022602355,0.414023,21285.0,21284.0,0.11266073]
[1674022602619,0.414023,21285.0,21284.0,0.33572455]
[1674022602879,0.414023,21285.0,21284.0,0.22306073]
[1674022603138,0.41590494,21285.0,21284.0,0.22306073]
[1674022604382,0.41590494,21285.0,21284.0,0.1104]
[1674022604635,0.41590494,21285.0,21284.0,0.18432967]
[1674022605646,0.402903,21285.0,21284.0,0.18432967]
[1674022606421,0.402903,21285.0,21284.0,0.29699349]
[1674022606644,0.402903,21285.0,21284.0,0.46526228]
[1674022607333,0.402903,21285.0,21284.0,1.02038369]
[1674022607585,0.402903,21285.0,21284.0,1.02038377]
[1674022607853,0.402903,21285.0,21284.0,1.1325892]
[1674022608106,0.402903,21285.0,21284.0,0.90998412]
[1674022608361,0.35808603,21286.0,21284.0,0.65434081]
[1674022608633,0.35808603,21286.0,21285.0,0.11268029]
[1674022608886,0.35808603,21286.0,21284.0,0.11268029]
[1674022609145,0.35808603,21286.0,21284.0,0.14755216]
[1674022609408,0.35808603,21286.0,21284.0,0.58251529]
[1674022609916,0.35808603,21286.0,21284.0,0.59151529]
[1674022612679,0.35808603,21286.0,21284.0,0.70121529]
[1674022613207,0.35808603,21286.0,21284.0,0.588535]
[1674022614192,0.58808603,21286.0,21284.0,0.588535]
[1674022614491,0.58827703,21286.0,21284.0,0.588535]
[1674022614966,0.58827703,21286.0,21284.0,0.70121529]
[1674022615715,0.58827703,21286.0,21284.0,0.588535]
[1674022616215,0.59015897,21286.0,21284.0,0.588535]
[1674022616471,0.58827703,21286.0,21284.0,0.588535]
[1674022618948,0.58827703,21286.0,21284.0,0.70121529]
[1674022619207,0.58827703,21286.0,21285.0,0.11268029]
[1674022619481,0.59015897,21286.0,21284.0,0.87020943]
[1674022619741,0.58827703,21286.0,21284.0,0.87020943]
[1674022621694,0.58827703,21286.0,21284.0,0.70121529]
[1674022622472,0.230191,21286.0,21284.0,0.70121529]
[1674022622732,0.230191,21286.0,21285.0,0.65130806]
[1674022623019,0.38749461,21291.0,21286.0,0.61038199]
[1674022623269,0.38749461,21291.0,21288.0,0.11262098]
[1674022623523,0.38749461,21291.0,21288.0,0.14749285]
[1674022623787,0.38749461,21291.0,21288.0,0.03487187]
[1674022624037,0.38749461,21291.0,21288.0,0.50461587]
[1674022624302,0.38749461,21291.0,21288.0,0.469744]
[1674022625343,0.00188194,21290.0,21288.0,0.469744]
[1674022625625,0.00188194,21290.0,21288.0,0.602744]
[1674022625882,0.00188194,21290.0,21287.0,0.469768]
[1674022626156,0.00188194,21290.0,21287.0,0.580168]
[1674022626415,0.38749461,21291.0,21288.0,0.134]
[1674022626675,0.00188194,21290.0,21287.0,0.580168]
[1674022626943,0.38749461,21291.0,21287.0,0.580168]
[1674022627438,0.38749461,21291.0,21288.0,0.00053347]
[1674022627735,0.00188194,21290.0,21288.0,0.13353347]
[1674022627988,0.00188194,21290.0,21287.0,0.580168]
[1674022628269,0.38749461,21291.0,21287.0,0.713168]
[1674022628512,0.38749461,21291.0,21287.0,0.580168]
[1674022629282,0.38749461,21291.0,21287.0,1.06832593]
[1674022629547,0.38749461,21291.0,21288.0,0.15]
[1674022629807,0.38749461,21291.0,21289.0,0.1104]
[1674022630830,0.469657,21293.0,21289.0,0.1104]
[1674022631097,0.92295506,21293.0,21289.0,0.29527187]
[1674022631351,0.92295506,21293.0,21290.0,0.03487187]
[1674022631613,0.92295506,21293.0,21291.0,0.1104]
[1674022631614,0.45329806,21293.0,21291.0,0.1104]
[1674022632928,0.45518,21293.0,21291.0,0.1144]
[1674022633185,0.45329806,21293.0,21291.0,0.1144]
[1674022634756,0.45518,21293.0,21291.0,0.004]
[1674022635777,0.92482,21293.0,21291.0,0.004]
[1674022638587,0.92293806,21293.0,21291.0,0.004]
[1674022640159,0.92293806,21293.0,21291.0,0.00307678]
[1674022642448,0.92482,21293.0,21291.0,0.00307678]
[1674022643677,0.92293806,21293.0,21291.0,0.00307678]
[1674022643937,0.92482,21293.0,21291.0,0.00307678]
[1674022644452,0.92293806,21293.0,21291.0,0.00307678]
[1674022644964,0.00188194,21292.0,21291.0,0.00307678]
[1674022645752,0.47154094,21292.0,21291.0,0.00307678]
[1674022646277,1.09119994,21292.0,21287.0,0.580148]
[1674022646516,0.19072595,21291.0,21287.0,0.580148]
[1674022647048,0.66041595,21291.0,21287.0,0.580148]
[1674022647540,0.66041595,21291.0,21287.0,0.712148]
[1674022648049,0.46969,21291.0,21287.0,0.712148]
[1674022648306,0.9682758,21291.0,21287.0,0.712148]
[1674022649324,0.9682758,21291.0,21287.0,0.74701987]
[1674022649578,0.9682758,21291.0,21287.0,0.712148]
[1674022651373,0.9682758,21291.0,21287.0,0.74701987]
[1674022651642,0.9682758,21291.0,21287.0,0.712148]
[1674022651908,1.15900175,21291.0,21287.0,0.2424]
[1674022652150,1.4379578,21291.0,21287.0,0.2424]
[1674022652681,1.4379578,21291.0,21287.0,0.132]
[1674022653158,1.62868375,21291.0,21287.0,0.132]
[1674022653445,1.4379578,21291.0,21287.0,0.132]
[1674022658911,1.62868375,21291.0,21287.0,0.132]
[1674022659131,0.1104,21290.0,21287.0,0.132]
[1674022659389,1.04983,21290.0,21287.0,0.132]
[1674022659934,1.04983,21290.0,21286.0,0.57300297]
[1674022660185,1.24055595,21290.0,21287.0,0.132]
[1674022660443,1.04983,21290.0,21287.0,0.132]
[1674022662505,0.93943,21290.0,21287.0,0.132]
[1674022663272,0.94131194,21290.0,21287.0,0.132]
[1674022664297,0.94131194,21290.0,21287.0,0.13192547]
[1674022665765,0.93943,21290.0,21287.0,0.13192547]
[1674022666014,0.00188194,21289.0,21287.0,0.13192547]
[1674022666263,0.93943,21290.0,21287.0,0.13192547]
[1674022667179,0.00188194,21289.0,21287.0,0.13192547]
[1674022668167,0.939447,21290.0,21286.0,0.56988199]
[1674022668388,0.00188194,21289.0,21287.0,0.132]
[1674022668665,0.939451,21290.0,21287.0,0.132]
[1674022669645,0.939451,21290.0,21286.0,0.68250297]
[1674022669913,0.939451,21290.0,21287.0,0.132]
[1674022671279,0.00188194,21289.0,21287.0,0.132]
[1674022671532,0.939451,21290.0,21287.0,0.132]
[1674022672287,0.00188194,21289.0,21287.0,0.132]
[1674022672514,0.939444,21290.0,21287.0,0.132]
[1674022673017,0.939444,21290.0,21286.0,0.68250297]
[1674022673538,0.939444,21290.0,21287.0,0.132]
[1674022673828,0.00188194,21289.0,21287.0,0.11262098]
[1674022674048,0.939444,21290.0,21287.0,0.24462098]
[1674022674305,0.939444,21290.0,21287.0,0.132]
[1674022674559,0.939444,21290.0,21286.0,0.68250297]
[1674022674813,0.00188194,21289.0,21286.0,0.81450297]
[1674022675847,0.00188194,21289.0,21286.0,0.54792072]
[1674022676092,0.00188194,21289.0,21286.0,0.41592072]
[1674022676342,0.47380478,21289.0,21287.0,0.132]
[1674022676575,0.47380478,21289.0,21286.0,0.41592072]
[1674022676829,0.47380478,21289.0,21286.0,0.54792072]
[1674022677096,0.47380478,21289.0,21287.0,0.02494172]
[1674022677866,0.47380478,21289.0,21287.0,0.15694172]
[1674022679343,0.47192284,21289.0,21287.0,0.15592434]
[1674022679620,0.47192284,21289.0,21287.0,0.15496051]
[1674022680133,0.939445,21290.0,21287.0,0.26758149]
[1674022680396,0.469722,21290.0,21287.0,0.26758149]
[1674022681183,0.469722,21290.0,21287.0,0.30451296]
[1674022681495,0.469722,21290.0,21287.0,0.13558149]
[1674022681672,0.469722,21290.0,21287.0,0.26758149]
[1674022681936,0.469722,21290.0,21287.0,0.43651296]
[1674022682191,0.469722,21290.0,21287.0,0.26758149]
[1674022682717,0.469722,21290.0,21287.0,0.37758149]
[1674022682975,0.00188194,21289.0,21287.0,0.26496051]
[1674022683490,0.00188194,21289.0,21287.0,0.13296051]
[1674022683750,0.00188194,21289.0,21287.0,0.14596051]
[1674022684035,0.47161294,21289.0,21287.0,0.02296051]
[1674022684272,0.47161294,21289.0,21287.0,0.14596051]
[1674022689371,0.469731,21289.0,21287.0,0.25858149]
[1674022690938,0.83295979,21290.0,21287.0,0.25858149]
[1674022691988,0.83295979,21290.0,21287.0,0.42751296]
[1674022692253,0.83295979,21290.0,21287.0,0.30451296]
[1674022692499,0.83295979,21290.0,21287.0,0.13558149]
[1674022692783,0.00188194,21289.0,21287.0,0.13558149]
[1674022693049,0.00188194,21289.0,21287.0,0.25858149]
[1674022693841,0.83295979,21290.0,21287.0,0.02296051]
[1674022694046,0.00188194,21289.0,21287.0,0.14596051]
[1674022694302,0.83295979,21290.0,21287.0,0.14596051]
[1674022695283,0.00188194,21289.0,21287.0,0.02296051]
[1674022695541,0.83295979,21290.0,21287.0,0.02296051]
[1674022696039,1.30266379,21290.0,21287.0,0.14596051]
[1674022696263,0.00188194,21289.0,21287.0,0.14596051]
[1674022696489,0.47161094,21289.0,21287.0,0.14596051]
[1674022697520,0.47161094,21289.0,21287.0,0.02296051]
[1674022697521,0.47149272,21289.0,21287.0,0.02296051]
[1674022697768,0.469729,21289.0,21287.0,0.25858149]
[1674022698248,0.469729,21289.0,21287.0,0.14596051]
[1674022698499,0.469729,21289.0,21287.0,0.25858149]
[1674022698500,0.47149272,21289.0,21287.0,0.25858149]
[1674022700055,0.469729,21289.0,21287.0,0.14596051]
[1674022704022,0.00176372,21288.0,21287.0,0.14596051]
[1674022704779,0.469729,21289.0,21287.0,0.14596051]
[1674022705028,0.00176372,21288.0,21287.0,0.02296051]
[1674022705273,0.469729,21289.0,21287.0,0.14596051]
[1674022706305,0.469729,21289.0,21287.0,0.25858149]
[1674022706846,0.94334279,21290.0,21287.0,0.13558149]
[1674022707151,0.94334279,21290.0,21287.0,0.42751296]
[1674022707933,0.00176372,21289.0,21287.0,0.30451296]
[1674022708193,0.94334279,21290.0,21287.0,0.13558149]
[1674022708715,0.94334279,21290.0,21287.0,0.25858149]
[1674022708986,0.00176372,21289.0,21287.0,0.25858149]
[1674022709247,0.94334279,21290.0,21287.0,0.25858149]
[1674022710039,0.94510651,21290.0,21287.0,0.42751296]
[1674022710292,0.94510651,21290.0,21287.0,0.25858149]
[1674022711035,1.41481051,21290.0,21287.0,0.25858149]
[1674022711576,1.41481051,21290.0,21287.0,0.14596051]
[1674022711809,1.67725683,21290.0,21287.0,0.14596051]
[1674022712071,1.56481051,21290.0,21287.0,0.14596051]
[1674022712346,1.41481051,21290.0,21287.0,0.14596051]
[1674022712852,1.52725683,21290.0,21287.0,0.14596051]
[1674022713564,1.52725683,21290.0,21287.0,0.18083238]
[1674022713565,1.05578911,21290.0,21287.0,0.18083238]